[Event "*** SCC Grand Prix: Titled Tuesday Blitz"]
[Site "Chess.com"]
[Date "2020.09.29"]
[Round "9"]
[White "boasovietica"]
[Black "DrMamaliga"]
[Result "0-1"]
[WhiteElo "2414"]
[BlackElo "2321"]
[TimeControl "180+1"]
[EndTime "11:44:43 PDT"]
[Termination "DrMamaliga won by resignation"]

1. e4 {[%clk 0:02:58.9]} 1... d6 {[%clk 0:02:59.5]} 2. d4 {[%clk 0:02:58.7]}
2... Nf6 {[%clk 0:03:00]} 3. f3 {[%clk 0:02:58.8]} 3... c5 {[%clk 0:02:57.9]} 4.
Ne2 {[%clk 0:02:55.2]} 4... e6 {[%clk 0:02:55]} 5. Be3 {[%clk 0:02:46]} 5... d5
{[%clk 0:02:50.3]} 6. dxc5 {[%clk 0:02:31.3]} 6... Nbd7 {[%clk 0:02:42.3]} 7. b4
{[%clk 0:02:24.4]} 7... dxe4 {[%clk 0:02:40.9]} 8. Nbc3 {[%clk 0:02:11.6]} 8...
exf3 {[%clk 0:02:38.5]} 9. Nd4 {[%clk 0:02:02.2]} 9... fxg2 {[%clk 0:02:34.3]}
10. Bxg2 {[%clk 0:02:03.1]} 10... Ne5 {[%clk 0:02:28]} 11. O-O {[%clk
0:01:55.7]} 11... Neg4 {[%clk 0:01:55.1]} 12. Bf4 {[%clk 0:01:31.1]} 12... e5
{[%clk 0:01:53.8]} 13. Re1 {[%clk 0:01:27]} 13... Be7 {[%clk 0:01:52.7]} 14.
Bxe5 {[%clk 0:01:20.7]} 14... Nxe5 {[%clk 0:01:53.6]} 15. Rxe5 {[%clk
0:01:20.8]} 15... O-O {[%clk 0:01:52.7]} 16. Nf5 {[%clk 0:01:12.5]} 16... Bxf5
{[%clk 0:01:44.9]} 17. Rxf5 {[%clk 0:01:07.6]} 17... Qc7 {[%clk 0:01:42.1]} 18.
Qf3 {[%clk 0:01:00.9]} 18... a5 {[%clk 0:01:36.6]} 19. Rf1 {[%clk 0:00:15.3]}
19... axb4 {[%clk 0:01:29.3]} 20. Nd5 {[%clk 0:00:15.5]} 20... Qxc5+ {[%clk
0:01:26.6]} 21. Kh1 {[%clk 0:00:15.8]} 21... Nxd5 {[%clk 0:01:26.3]} 22. Qxd5
{[%clk 0:00:11]} 22... Qxd5 {[%clk 0:01:24.3]} 23. Bxd5 {[%clk 0:00:11.1]} 23...
Bf6 {[%clk 0:01:20]} 24. Bb3 {[%clk 0:00:10]} 24... Rad8 {[%clk 0:01:14.5]} 25.
Rb5 {[%clk 0:00:10.1]} 25... Rd7 {[%clk 0:01:06.8]} 26. Rxb4 {[%clk 0:00:10]}
26... Re8 {[%clk 0:01:02.6]} 27. Kg2 {[%clk 0:00:09.3]} 27... Re2+ {[%clk
0:00:57.1]} 28. Rf2 {[%clk 0:00:07.6]} 28... Rxf2+ {[%clk 0:00:56.5]} 29. Kxf2
{[%clk 0:00:08]} 29... g6 {[%clk 0:00:56.5]} 30. Kf3 {[%clk 0:00:06.7]} 30...
Kg7 {[%clk 0:00:55.6]} 31. a4 {[%clk 0:00:06.8]} 31... h5 {[%clk 0:00:53.5]} 32.
Rb5 {[%clk 0:00:06.8]} 32... Bd4 {[%clk 0:00:48.9]} 33. a5 {[%clk 0:00:05.9]}
33... Ba7 {[%clk 0:00:42.5]} 34. Bd5 {[%clk 0:00:06.2]} 34... Bb8 {[%clk
0:00:37.9]} 35. Bxb7 {[%clk 0:00:05.8]} 35... Bxh2 {[%clk 0:00:37.2]} 36. a6
{[%clk 0:00:05.3]} 36... Bg1 {[%clk 0:00:35.1]} 37. c4 {[%clk 0:00:03]} 37... h4
{[%clk 0:00:34.6]} 38. c5 {[%clk 0:00:03.4]} 38... h3 {[%clk 0:00:33.4]} 39. a7
{[%clk 0:00:03.8]} 39... h2 {[%clk 0:00:33.5]} 40. Kg2 {[%clk 0:00:03.9]} 40...
Rd2+ {[%clk 0:00:24.3]} 41. Kg3 {[%clk 0:00:04.3]} 41... Rc2 {[%clk 0:00:19.6]}
42. a8=Q {[%clk 0:00:04.1]} 42... Bxc5 {[%clk 0:00:18.9]} 43. Qe8 {[%clk
0:00:04]} 43... Bd6+ {[%clk 0:00:18.5]} 44. Kg4 {[%clk 0:00:03.6]} 44... Rc4+
{[%clk 0:00:18.3]} 45. Kh3 {[%clk 0:00:03.2]} 45... Rc3+ {[%clk 0:00:18]} 46.
Kg2 {[%clk 0:00:03.4]} 46... Rc2+ {[%clk 0:00:18.1]} 47. Kf1 {[%clk 0:00:04]}
47... Rc1+ {[%clk 0:00:18.1]} 48. Ke2 {[%clk 0:00:04.5]} 48... Rc2+ {[%clk
0:00:17.3]} 49. Kd3 {[%clk 0:00:04.4]} 49... Rc7 {[%clk 0:00:17.7]} 50. Rd5
{[%clk 0:00:04]} 50... h1=Q {[%clk 0:00:15.7]} 51. Rxd6 {[%clk 0:00:03.5]} 51...
Qd1+ {[%clk 0:00:15.6]} 52. Ke4 {[%clk 0:00:03.6]} 52... Qe1+ {[%clk 0:00:15.8]}
53. Kd5 {[%clk 0:00:03.3]} 53... Qxe8 {[%clk 0:00:16.7]} 0-1

[Event "*** SCC Grand Prix: Titled Tuesday Blitz"]
[Site "Chess.com"]
[Date "2020.09.29"]
[Round "9"]
[White "zmeeed67"]
[Black "UCantHandleDenker"]
[Result "0-1"]
[WhiteElo "2376"]
[BlackElo "2559"]
[TimeControl "180+1"]
[EndTime "11:44:47 PDT"]
[Termination "UCantHandleDenker won on time"]

1. e4 {[%clk 0:03:00.9]} 1... d6 {[%clk 0:02:59]} 2. d4 {[%clk 0:03:00]} 2...
Nf6 {[%clk 0:02:59.4]} 3. Nc3 {[%clk 0:02:59.3]} 3... g6 {[%clk 0:02:59.3]} 4.
Nf3 {[%clk 0:02:57.9]} 4... Bg7 {[%clk 0:02:59.3]} 5. Be3 {[%clk 0:02:58.4]}
5... O-O {[%clk 0:02:58.3]} 6. Qd2 {[%clk 0:02:58.8]} 6... c6 {[%clk 0:02:57.8]}
7. Bh6 {[%clk 0:02:57.7]} 7... b5 {[%clk 0:02:56.9]} 8. Bxg7 {[%clk 0:02:57.7]}
8... Kxg7 {[%clk 0:02:56.2]} 9. Bd3 {[%clk 0:02:55.5]} 9... Nbd7 {[%clk
0:02:54.3]} 10. O-O-O {[%clk 0:02:50.3]} 10... e5 {[%clk 0:02:51.7]} 11. h3
{[%clk 0:02:44.6]} 11... Qe7 {[%clk 0:02:51.4]} 12. Rde1 {[%clk 0:02:41.6]}
12... a6 {[%clk 0:02:51]} 13. g4 {[%clk 0:02:41.1]} 13... c5 {[%clk 0:02:44.8]}
14. d5 {[%clk 0:02:22.1]} 14... c4 {[%clk 0:02:38.9]} 15. Be2 {[%clk 0:02:18.9]}
15... Nc5 {[%clk 0:02:19.7]} 16. Bd1 {[%clk 0:01:45.3]} 16... b4 {[%clk
0:02:16.2]} 17. Nb1 {[%clk 0:01:41.5]} 17... c3 {[%clk 0:02:14.1]} 18. bxc3
{[%clk 0:01:41.2]} 18... Nfxe4 {[%clk 0:02:14.1]} 19. Qe3 {[%clk 0:01:34.7]}
19... bxc3 {[%clk 0:02:12.2]} 20. Nxc3 {[%clk 0:01:29.5]} 20... Nxc3 {[%clk
0:02:11.5]} 21. Qxc3 {[%clk 0:01:28.1]} 21... Bd7 {[%clk 0:02:10.9]} 22. g5
{[%clk 0:01:20.2]} 22... Rfc8 {[%clk 0:02:08.5]} 23. h4 {[%clk 0:01:06.1]} 23...
Bg4 {[%clk 0:02:04.1]} 24. Nd4 {[%clk 0:01:00.5]} 24... Bxd1 {[%clk 0:01:53.1]}
25. Kxd1 {[%clk 0:01:00.1]} 25... Ne4 {[%clk 0:01:45.4]} 26. Qf3 {[%clk
0:00:46.2]} 26... Nc3+ {[%clk 0:01:32.8]} 27. Kd2 {[%clk 0:00:44.1]} 27... Qd7
{[%clk 0:01:04.3]} 28. Nc6 {[%clk 0:00:18.6]} 28... Nxd5 {[%clk 0:01:02]} 29.
Qxd5 {[%clk 0:00:17.8]} 29... Qxc6 {[%clk 0:00:58.6]} 30. Qxc6 {[%clk
0:00:18.2]} 30... Rxc6 {[%clk 0:00:59.2]} 31. h5 {[%clk 0:00:18.7]} 31... gxh5
{[%clk 0:00:57.8]} 32. Rxh5 {[%clk 0:00:18.2]} 32... Rac8 {[%clk 0:00:58.3]} 33.
Rc1 {[%clk 0:00:17.1]} 33... Rc4 {[%clk 0:00:57.1]} 34. Rh3 {[%clk 0:00:14]}
34... Rd4+ {[%clk 0:00:56.2]} 35. Ke2 {[%clk 0:00:13.3]} 35... Rdc4 {[%clk
0:00:56.3]} 36. Kd2 {[%clk 0:00:13.1]} 36... Rf4 {[%clk 0:00:56.4]} 37. Ke2
{[%clk 0:00:13.2]} 37... Rcc4 {[%clk 0:00:54.1]} 38. c3 {[%clk 0:00:13.3]} 38...
d5 {[%clk 0:00:51.1]} 39. Rb1 {[%clk 0:00:11.7]} 39... Rce4+ {[%clk 0:00:43.8]}
40. Kf1 {[%clk 0:00:11.1]} 40... Rf5 {[%clk 0:00:40]} 41. Rb6 {[%clk 0:00:10]}
41... Ref4 {[%clk 0:00:36.9]} 42. Rh2 {[%clk 0:00:09.6]} 42... Rxg5 {[%clk
0:00:33.8]} 43. Rxa6 {[%clk 0:00:09.8]} 43... e4 {[%clk 0:00:27.5]} 44. Ke2
{[%clk 0:00:09.9]} 44... Rf3 {[%clk 0:00:22.3]} 45. Rc6 {[%clk 0:00:08.9]} 45...
Rg1 {[%clk 0:00:18.4]} 46. Rc5 {[%clk 0:00:08.2]} 46... Rd3 {[%clk 0:00:16.3]}
47. a4 {[%clk 0:00:06]} 47... Ra1 {[%clk 0:00:14.4]} 48. a5 {[%clk 0:00:06]}
48... Ra2+ {[%clk 0:00:14.3]} 49. Kf1 {[%clk 0:00:05.6]} 49... Rdd2 {[%clk
0:00:14.6]} 50. Rg2+ {[%clk 0:00:04.9]} 50... Kf6 {[%clk 0:00:15]} 51. Kg1
{[%clk 0:00:05.5]} 51... Rd1+ {[%clk 0:00:14.2]} 52. Kh2 {[%clk 0:00:05.6]}
52... Raa1 {[%clk 0:00:15.1]} 53. Rc6+ {[%clk 0:00:06]} 53... Ke5 {[%clk
0:00:15.4]} 54. a6 {[%clk 0:00:06.1]} 54... f5 {[%clk 0:00:14.6]} 55. Rg7 {[%clk
0:00:04.3]} 55... Kf4 {[%clk 0:00:14.4]} 0-1

[Event "*** SCC Grand Prix: Titled Tuesday Blitz"]
[Site "Chess.com"]
[Date "2020.09.29"]
[Round "9"]
[White "dominikaf"]
[Black "KarstenHansch"]
[Result "0-1"]
[WhiteElo "2286"]
[BlackElo "2449"]
[TimeControl "180+1"]
[EndTime "11:44:47 PDT"]
[Termination "KarstenHansch won by resignation"]

1. d4 {[%clk 0:03:00.9]} 1... d5 {[%clk 0:02:59.9]} 2. Bf4 {[%clk 0:03:00.3]}
2... Nf6 {[%clk 0:02:58.8]} 3. e3 {[%clk 0:03:00.6]} 3... e6 {[%clk 0:02:59.7]}
4. Nd2 {[%clk 0:03:00.8]} 4... Bd6 {[%clk 0:03:00.6]} 5. Bg3 {[%clk 0:03:01.2]}
5... O-O {[%clk 0:03:00.8]} 6. Ngf3 {[%clk 0:03:00.1]} 6... b6 {[%clk
0:03:01.2]} 7. Bd3 {[%clk 0:02:55.6]} 7... Ba6 {[%clk 0:03:00.5]} 8. Bxa6 {[%clk
0:02:54]} 8... Nxa6 {[%clk 0:03:00.3]} 9. c3 {[%clk 0:02:54.3]} 9... c5 {[%clk
0:02:59.4]} 10. Ne5 {[%clk 0:02:54.4]} 10... Nb8 {[%clk 0:02:58.5]} 11. O-O
{[%clk 0:02:50.8]} 11... Qc7 {[%clk 0:02:58.3]} 12. f4 {[%clk 0:02:50]} 12...
Nc6 {[%clk 0:02:58.1]} 13. Qf3 {[%clk 0:02:49.8]} 13... Ne7 {[%clk 0:02:57.3]}
14. Bh4 {[%clk 0:02:47.6]} 14... Nd7 {[%clk 0:02:48.8]} 15. g4 {[%clk
0:02:24.1]} 15... f6 {[%clk 0:02:47.2]} 16. Nxd7 {[%clk 0:02:18.6]} 16... Qxd7
{[%clk 0:02:48.1]} 17. e4 {[%clk 0:02:15.7]} 17... e5 {[%clk 0:02:36.4]} 18.
dxe5 {[%clk 0:02:02.6]} 18... fxe5 {[%clk 0:02:33.4]} 19. f5 {[%clk 0:02:02.7]}
19... d4 {[%clk 0:02:32.4]} 20. Rad1 {[%clk 0:01:47.4]} 20... Ng6 {[%clk
0:02:27.7]} 21. Bg3 {[%clk 0:01:36.9]} 21... Nh8 {[%clk 0:02:26.5]} 22. Nc4
{[%clk 0:01:36.1]} 22... Nf7 {[%clk 0:02:25.7]} 23. h4 {[%clk 0:01:16.1]} 23...
b5 {[%clk 0:02:23.6]} 24. Nxd6 {[%clk 0:01:14.4]} 24... Qxd6 {[%clk 0:02:22.6]}
25. g5 {[%clk 0:01:14.4]} 25... g6 {[%clk 0:02:19.6]} 26. Qg4 {[%clk 0:00:57.4]}
26... Qe7 {[%clk 0:02:10]} 27. fxg6 {[%clk 0:00:43.5]} 27... hxg6 {[%clk
0:02:09]} 28. Rf6 {[%clk 0:00:43.9]} 28... Kg7 {[%clk 0:01:58.8]} 29. h5 {[%clk
0:00:43.1]} 29... Nh8 {[%clk 0:01:47.9]} 30. Rdf1 {[%clk 0:00:37.5]} 30... Rae8
{[%clk 0:01:38.8]} 31. Qh4 {[%clk 0:00:30.5]} 31... Kg8 {[%clk 0:00:51.4]} 32.
hxg6 {[%clk 0:00:12.6]} 32... dxc3 {[%clk 0:00:48.4]} 33. bxc3 {[%clk
0:00:09.2]} 33... Qg7 {[%clk 0:00:38]} 34. Qh5 {[%clk 0:00:06.7]} 34... Rxf6
{[%clk 0:00:26.5]} 35. Rxf6 {[%clk 0:00:04]} 35... b4 {[%clk 0:00:22.9]} 36. Rf7
{[%clk 0:00:04.2]} 36... Nxf7 {[%clk 0:00:21.5]} 37. gxf7+ {[%clk 0:00:04]}
37... Qxf7 {[%clk 0:00:21.5]} 38. g6 {[%clk 0:00:04.6]} 38... Qg7 {[%clk
0:00:19.7]} 39. Kg2 {[%clk 0:00:03.6]} 39... bxc3 {[%clk 0:00:19.6]} 40. Qd1
{[%clk 0:00:02.4]} 40... Qxg6 {[%clk 0:00:18.7]} 41. Qd5+ {[%clk 0:00:02.7]}
41... Qe6 {[%clk 0:00:18.6]} 42. Qxc5 {[%clk 0:00:02.6]} 42... Rc8 {[%clk
0:00:18.8]} 43. Qe3 {[%clk 0:00:02]} 43... c2 {[%clk 0:00:19.2]} 44. Qc1 {[%clk
0:00:02.7]} 44... Qc4 {[%clk 0:00:18.8]} 45. Kh3 {[%clk 0:00:02.8]} 45... Qe6+
{[%clk 0:00:17.9]} 46. Kg2 {[%clk 0:00:02.8]} 46... Qg6 {[%clk 0:00:18.2]} 47.
Kh3 {[%clk 0:00:01.8]} 47... Kh7 {[%clk 0:00:18.5]} 48. Kg2 {[%clk 0:00:01.8]}
48... Qxe4+ {[%clk 0:00:18.1]} 49. Kh3 {[%clk 0:00:01.7]} 49... Qf5+ {[%clk
0:00:18.2]} 50. Kg2 {[%clk 0:00:02.4]} 50... Qe4+ {[%clk 0:00:18.6]} 51. Kh3
{[%clk 0:00:03]} 51... Rc3 {[%clk 0:00:17.5]} 52. Kh2 {[%clk 0:00:02.4]} 52...
Rxg3 {[%clk 0:00:17.5]} 53. Kxg3 {[%clk 0:00:02.3]} 53... Qf4+ {[%clk
0:00:14.1]} 54. Qxf4 {[%clk 0:00:02.5]} 54... exf4+ {[%clk 0:00:15]} 55. Kxf4
{[%clk 0:00:03.4]} 55... c1=Q+ {[%clk 0:00:15.6]} 0-1

[Event "*** SCC Grand Prix: Titled Tuesday Blitz"]
[Site "Chess.com"]
[Date "2020.09.29"]
[Round "9"]
[White "Reader777"]
[Black "Sychev_Klementy"]
[Result "0-1"]
[WhiteElo "2658"]
[BlackElo "2882"]
[TimeControl "180+1"]
[EndTime "11:44:49 PDT"]
[Termination "Sychev_Klementy won by resignation"]

1. d4 {[%clk 0:03:00.9]} 1... Nf6 {[%clk 0:02:59.7]} 2. c4 {[%clk 0:03:01.1]}
2... g6 {[%clk 0:03:00]} 3. Nc3 {[%clk 0:03:00.4]} 3... Bg7 {[%clk 0:03:00.6]}
4. e4 {[%clk 0:03:00.4]} 4... d6 {[%clk 0:03:00.7]} 5. f4 {[%clk 0:03:00.6]}
5... O-O {[%clk 0:02:59.4]} 6. Nf3 {[%clk 0:03:00.8]} 6... c5 {[%clk 0:02:59.4]}
7. d5 {[%clk 0:03:00.8]} 7... e6 {[%clk 0:02:59.7]} 8. Be2 {[%clk 0:03:00.6]}
8... exd5 {[%clk 0:02:59.9]} 9. cxd5 {[%clk 0:03:00.2]} 9... Nbd7 {[%clk
0:02:54]} 10. O-O {[%clk 0:02:58.8]} 10... Re8 {[%clk 0:02:53.9]} 11. Nd2 {[%clk
0:02:58.1]} 11... c4 {[%clk 0:02:50.5]} 12. e5 {[%clk 0:02:57.4]} 12... dxe5
{[%clk 0:02:48.9]} 13. Nxc4 {[%clk 0:02:57.6]} 13... exf4 {[%clk 0:02:25.1]} 14.
Bxf4 {[%clk 0:02:56.8]} 14... Nb6 {[%clk 0:02:22.5]} 15. Nd6 {[%clk 0:02:52.8]}
15... Re7 {[%clk 0:02:14.5]} 16. a4 {[%clk 0:02:22.8]} 16... a6 {[%clk
0:01:32.3]} 17. a5 {[%clk 0:02:19.7]} 17... Nbd7 {[%clk 0:01:32.1]} 18. Nxc8
{[%clk 0:02:03]} 18... Rxc8 {[%clk 0:01:31.6]} 19. d6 {[%clk 0:02:02.9]} 19...
Re8 {[%clk 0:01:28.5]} 20. Bf3 {[%clk 0:02:01.5]} 20... Rc5 {[%clk 0:01:20.7]}
21. Re1 {[%clk 0:01:45.2]} 21... Rxa5 {[%clk 0:01:07.8]} 22. Rxe8+ {[%clk
0:01:32.4]} 22... Nxe8 {[%clk 0:01:08.7]} 23. Rxa5 {[%clk 0:01:27.8]} 23... Qxa5
{[%clk 0:01:09.6]} 24. Nd5 {[%clk 0:01:27.5]} 24... Be5 {[%clk 0:00:45.2]} 25.
Qe2 {[%clk 0:01:02.7]} 25... Qc5+ {[%clk 0:00:39.8]} 26. Kf1 {[%clk 0:00:53.5]}
26... Qxd6 {[%clk 0:00:38.4]} 27. g3 {[%clk 0:00:42.1]} 27... Kg7 {[%clk
0:00:37.2]} 28. Be3 {[%clk 0:00:39.8]} 28... b5 {[%clk 0:00:29.9]} 29. Qc2
{[%clk 0:00:36.3]} 29... Nef6 {[%clk 0:00:28.5]} 30. Nf4 {[%clk 0:00:36.1]}
30... Bd4 {[%clk 0:00:17.6]} 31. Bd2 {[%clk 0:00:35.4]} 31... Ne5 {[%clk
0:00:16.5]} 32. Be2 {[%clk 0:00:32.9]} 32... Qd7 {[%clk 0:00:11.6]} 33. Kg2
{[%clk 0:00:25.5]} 33... Qb7+ {[%clk 0:00:10.4]} 34. Kh3 {[%clk 0:00:21.9]}
34... g5 {[%clk 0:00:09.6]} 35. Nh5+ {[%clk 0:00:15.1]} 35... Nxh5 {[%clk
0:00:09.8]} 36. Bxh5 {[%clk 0:00:15.7]} 36... Qd7+ {[%clk 0:00:09.7]} 37. Kg2
{[%clk 0:00:14.8]} 37... g4 {[%clk 0:00:08.8]} 38. Qe4 {[%clk 0:00:09.2]} 38...
Qc6 {[%clk 0:00:06.8]} 39. Qxc6 {[%clk 0:00:08.3]} 39... Nxc6 {[%clk 0:00:07.7]}
40. b4 {[%clk 0:00:07.9]} 40... f5 {[%clk 0:00:06.9]} 41. Be8 {[%clk 0:00:08.1]}
41... Ne5 {[%clk 0:00:06.8]} 42. h3 {[%clk 0:00:07]} 42... Kf8 {[%clk
0:00:05.1]} 43. Bh5 {[%clk 0:00:06.4]} 43... Nc4 {[%clk 0:00:05.4]} 44. Bh6+
{[%clk 0:00:04.9]} 44... Bg7 {[%clk 0:00:05.5]} 45. hxg4 {[%clk 0:00:05.8]}
45... Bxh6 {[%clk 0:00:05.3]} 46. gxf5 {[%clk 0:00:05.5]} 46... Bd2 {[%clk
0:00:05.5]} 47. Bf3 {[%clk 0:00:04.7]} 47... Bxb4 {[%clk 0:00:05.3]} 48. Bb7
{[%clk 0:00:05.6]} 48... a5 {[%clk 0:00:05.7]} 49. Bc6 {[%clk 0:00:06.2]} 49...
Nd6 {[%clk 0:00:06]} 50. Kf3 {[%clk 0:00:06]} 50... a4 {[%clk 0:00:06.4]} 51.
Kf4 {[%clk 0:00:05.9]} 51... a3 {[%clk 0:00:06.6]} 52. Bd5 {[%clk 0:00:06.8]}
52... Nc4 {[%clk 0:00:06.9]} 0-1

[Event "*** SCC Grand Prix: Titled Tuesday Blitz"]
[Site "Chess.com"]
[Date "2020.09.29"]
[Round "9"]
[White "Misticpikachu"]
[Black "vaishali2001"]
[Result "0-1"]
[WhiteElo "2305"]
[BlackElo "2474"]
[TimeControl "180+1"]
[EndTime "11:44:52 PDT"]
[Termination "vaishali2001 won by checkmate"]

1. c4 {[%clk 0:03:00.9]} 1... e5 {[%clk 0:02:59.1]} 2. Nc3 {[%clk 0:02:57.9]}
2... Nf6 {[%clk 0:02:59.3]} 3. Nf3 {[%clk 0:02:58.3]} 3... Nc6 {[%clk
0:02:58.9]} 4. e4 {[%clk 0:02:58.3]} 4... Bb4 {[%clk 0:02:57.9]} 5. d3 {[%clk
0:02:57.3]} 5... d6 {[%clk 0:02:57.5]} 6. a3 {[%clk 0:02:57.1]} 6... Ba5 {[%clk
0:02:56.2]} 7. Be3 {[%clk 0:02:49]} 7... Bb6 {[%clk 0:02:49.1]} 8. Bxb6 {[%clk
0:02:47.9]} 8... axb6 {[%clk 0:02:50]} 9. Be2 {[%clk 0:02:47]} 9... Bg4 {[%clk
0:02:49.2]} 10. O-O {[%clk 0:02:45]} 10... O-O {[%clk 0:02:48.2]} 11. Nh4 {[%clk
0:02:27.5]} 11... Bxe2 {[%clk 0:02:39.1]} 12. Qxe2 {[%clk 0:02:22]} 12... Nd4
{[%clk 0:02:38.4]} 13. Qd1 {[%clk 0:02:15.7]} 13... Nxe4 {[%clk 0:02:35.3]} 14.
dxe4 {[%clk 0:01:54.4]} 14... Qxh4 {[%clk 0:02:33.3]} 15. g3 {[%clk 0:01:54]}
15... Qh6 {[%clk 0:02:30.9]} 16. Kg2 {[%clk 0:01:51.5]} 16... f5 {[%clk
0:02:23.4]} 17. exf5 {[%clk 0:01:50.8]} 17... Rxf5 {[%clk 0:02:24.3]} 18. f4
{[%clk 0:01:47.1]} 18... Raf8 {[%clk 0:02:22.5]} 19. Qd3 {[%clk 0:01:44.9]}
19... Rh5 {[%clk 0:02:01]} 20. h4 {[%clk 0:01:33.9]} 20... Nf5 {[%clk
0:01:53.8]} 21. Nd5 {[%clk 0:01:10.5]} 21... c6 {[%clk 0:01:25.5]} 22. Ne3
{[%clk 0:00:37.3]} 22... exf4 {[%clk 0:00:26]} 23. Rxf4 {[%clk 0:00:22.5]} 23...
Nxe3+ {[%clk 0:00:19]} 24. Qxe3 {[%clk 0:00:22.8]} 24... Rxf4 {[%clk 0:00:18.1]}
25. gxf4 {[%clk 0:00:23.7]} 25... Qg6+ {[%clk 0:00:15.8]} 26. Kh3 {[%clk
0:00:21.2]} 26... Qf5+ {[%clk 0:00:13.1]} 27. Kg3 {[%clk 0:00:21.4]} 27... Qg6+
{[%clk 0:00:10.5]} 28. Kh3 {[%clk 0:00:19.4]} 28... Rf5 {[%clk 0:00:09.6]} 29.
Rg1 {[%clk 0:00:08.7]} 29... Qf7 {[%clk 0:00:09.4]} 30. Rg4 {[%clk 0:00:08.5]}
30... h6 {[%clk 0:00:07]} 31. b3 {[%clk 0:00:07.2]} 31... Kh7 {[%clk 0:00:05.6]}
32. Qe4 {[%clk 0:00:05.5]} 32... d5 {[%clk 0:00:05.9]} 33. cxd5 {[%clk
0:00:05.2]} 33... Qxd5 {[%clk 0:00:06.1]} 34. Qe7 {[%clk 0:00:03.1]} 34... Qh1+
{[%clk 0:00:04.6]} 35. Kg3 {[%clk 0:00:02.8]} 35... Qg1+ {[%clk 0:00:04.4]} 36.
Kf3 {[%clk 0:00:02.4]} 36... Qf1+ {[%clk 0:00:03.8]} 37. Kg3 {[%clk 0:00:02.7]}
37... Qg1+ {[%clk 0:00:04.2]} 38. Kh3 {[%clk 0:00:02.9]} 38... Qf1+ {[%clk
0:00:04]} 39. Kg3 {[%clk 0:00:02.5]} 39... Qd3+ {[%clk 0:00:04.6]} 40. Kh2
{[%clk 0:00:01.9]} 40... Qd2+ {[%clk 0:00:03.1]} 41. Rg2 {[%clk 0:00:02.2]}
41... Qxf4+ {[%clk 0:00:02.7]} 42. Kg1 {[%clk 0:00:03]} 42... Qd4+ {[%clk
0:00:02.7]} 43. Kh1 {[%clk 0:00:02.9]} 43... Qa1+ {[%clk 0:00:01.7]} 44. Kh2
{[%clk 0:00:02.7]} 44... Qd4 {[%clk 0:00:02.6]} 45. Kh1 {[%clk 0:00:01.4]} 45...
Rf4 {[%clk 0:00:03]} 46. h5 {[%clk 0:00:01.1]} 46... Rh4+ {[%clk 0:00:03.3]} 47.
Rh2 {[%clk 0:00:02]} 47... Qd1+ {[%clk 0:00:03]} 48. Kg2 {[%clk 0:00:01.9]}
48... Qd2+ {[%clk 0:00:03.5]} 49. Kg3 {[%clk 0:00:02.8]} 49... Qxh2+ {[%clk
0:00:03.7]} 50. Kf3 {[%clk 0:00:03.7]} 50... Rf4+ {[%clk 0:00:04]} 51. Ke3
{[%clk 0:00:03.7]} 51... Qf2+ {[%clk 0:00:04.5]} 52. Kd3 {[%clk 0:00:02.6]}
52... Rd4+ {[%clk 0:00:05.4]} 53. Kc3 {[%clk 0:00:02.5]} 53... Qd2# {[%clk
0:00:06.3]} 0-1

[Event "*** SCC Grand Prix: Titled Tuesday Blitz"]
[Site "Chess.com"]
[Date "2020.09.29"]
[Round "9"]
[White "anon569"]
[Black "Manukyan_Artak"]
[Result "1-0"]
[WhiteElo "2254"]
[BlackElo "2366"]
[TimeControl "180+1"]
[EndTime "11:44:53 PDT"]
[Termination "anon569 won on time"]

1. e4 {[%clk 0:03:00.9]} 1... c6 {[%clk 0:02:50.7]} 2. d4 {[%clk 0:03:00.4]}
2... d5 {[%clk 0:02:51.6]} 3. Nd2 {[%clk 0:03:00.9]} 3... dxe4 {[%clk
0:02:51.5]} 4. Nxe4 {[%clk 0:03:01.3]} 4... Nf6 {[%clk 0:02:52.4]} 5. Nxf6+
{[%clk 0:03:01.5]} 5... exf6 {[%clk 0:02:53.3]} 6. Be3 {[%clk 0:03:01.1]} 6...
Bd6 {[%clk 0:02:54.2]} 7. Qd2 {[%clk 0:03:01]} 7... O-O {[%clk 0:02:53.3]} 8.
Be2 {[%clk 0:03:01.2]} 8... Re8 {[%clk 0:02:51.1]} 9. g4 {[%clk 0:02:55.8]} 9...
a5 {[%clk 0:02:39.3]} 10. h4 {[%clk 0:02:52.5]} 10... a4 {[%clk 0:02:30.8]} 11.
Nh3 {[%clk 0:02:50.3]} 11... a3 {[%clk 0:02:29.1]} 12. b3 {[%clk 0:02:49.2]}
12... Qa5 {[%clk 0:02:17.4]} 13. Qxa5 {[%clk 0:02:41.8]} 13... Rxa5 {[%clk
0:02:18.3]} 14. Kd2 {[%clk 0:02:41.3]} 14... b5 {[%clk 0:02:13.7]} 15. c3 {[%clk
0:02:39.9]} 15... b4 {[%clk 0:02:07.4]} 16. c4 {[%clk 0:02:38.2]} 16... c5
{[%clk 0:02:06.1]} 17. d5 {[%clk 0:02:36.7]} 17... Nd7 {[%clk 0:02:01]} 18. Nf4
{[%clk 0:02:20.3]} 18... Be5 {[%clk 0:01:54.9]} 19. Rad1 {[%clk 0:02:17.5]}
19... Bc3+ {[%clk 0:01:54.7]} 20. Kc2 {[%clk 0:02:12.4]} 20... Ne5 {[%clk
0:01:54.1]} 21. Rhg1 {[%clk 0:02:11.3]} 21... f5 {[%clk 0:01:44.9]} 22. g5
{[%clk 0:02:08.9]} 22... Ng4 {[%clk 0:01:42.5]} 23. d6 {[%clk 0:01:33]} 23...
Nxe3+ {[%clk 0:01:15.7]} 24. fxe3 {[%clk 0:01:31.3]} 24... Bb7 {[%clk
0:01:10.8]} 25. d7 {[%clk 0:00:51.1]} 25... Rd8 {[%clk 0:01:09.9]} 26. Nd5
{[%clk 0:00:51.1]} 26... Kf8 {[%clk 0:01:03.7]} 27. Nxc3 {[%clk 0:00:44.8]}
27... bxc3 {[%clk 0:01:03.5]} 28. Kxc3 {[%clk 0:00:45.3]} 28... Ke7 {[%clk
0:00:58.2]} 29. Rd2 {[%clk 0:00:24.1]} 29... Rxd7 {[%clk 0:00:57.1]} 30. Rgd1
{[%clk 0:00:21.8]} 30... Rxd2 {[%clk 0:00:51.8]} 31. Rxd2 {[%clk 0:00:22.1]}
31... Ra6 {[%clk 0:00:33.9]} 32. Bd3 {[%clk 0:00:18.3]} 32... Re6 {[%clk
0:00:22.7]} 33. Re2 {[%clk 0:00:17.8]} 33... g6 {[%clk 0:00:20.5]} 34. b4 {[%clk
0:00:17.4]} 34... cxb4+ {[%clk 0:00:20.1]} 35. Kxb4 {[%clk 0:00:17.4]} 35... Be4
{[%clk 0:00:19.6]} 36. Rd2 {[%clk 0:00:13.7]} 36... Bxd3 {[%clk 0:00:18.6]} 37.
Rxd3 {[%clk 0:00:14.2]} 37... Re4 {[%clk 0:00:19.5]} 38. Rc3 {[%clk 0:00:13.6]}
38... Rxh4 {[%clk 0:00:18.6]} 39. Kb5 {[%clk 0:00:12.6]} 39... h5 {[%clk
0:00:15.6]} 40. c5 {[%clk 0:00:09.7]} 40... Kd7 {[%clk 0:00:14.4]} 41. Rxa3
{[%clk 0:00:07.2]} 41... Rh1 {[%clk 0:00:12.6]} 42. Ra7+ {[%clk 0:00:07.6]}
42... Ke6 {[%clk 0:00:12.4]} 43. c6 {[%clk 0:00:08]} 43... Rb1+ {[%clk
0:00:10.2]} 44. Kc5 {[%clk 0:00:08.5]} 44... Rc1+ {[%clk 0:00:10]} 45. Kb6
{[%clk 0:00:08.7]} 45... h4 {[%clk 0:00:07.9]} 46. Ra8 {[%clk 0:00:05]} 46... h3
{[%clk 0:00:05]} 47. Re8+ {[%clk 0:00:05]} 47... Kd6 {[%clk 0:00:04]} 48. Rd8+
{[%clk 0:00:05.1]} 48... Ke7 {[%clk 0:00:03.9]} 49. c7 {[%clk 0:00:05.3]} 49...
h2 {[%clk 0:00:01.7]} 50. Rh8 {[%clk 0:00:05.3]} 1-0